bitfinex/quotes_ETHUSD_20240927
["timestamp","ask_amount","ask_price","bid_price","bid_amount"]
[1727458537496,3.70056,2702.3,2701.8,3.78486587]
[1727458537938,7.40072,2702.5,2701.9,3.70108]
[1727458538099,0.7678,2702.6,2702.0,3.78448577]
[1727458538100,4.46796,2702.6,2702.0,3.78448577]
[1727458538296,3.70031,2702.5,2702.0,4.00817577]
[1727458538510,3.69981,2702.9,2702.4,3.70038]
[1727458538728,0.8081,2703.0,2702.4,3.70038]
[1727458538729,0.8081,2703.0,2702.5,0.08342056]
[1727458538935,3.69926,2703.3,2702.6,0.2237]
[1727458539139,3.69926,2703.3,2702.7,3.7833405]
[1727458539842,7.39854,2703.3,2702.7,3.7833405]
[1727458540039,3.69926,2703.3,2702.8,3.69984]
[1727458540419,3.69926,2703.3,2702.9,0.08328044]
[1727458540617,3.69932,2703.2,2702.9,0.08328044]
[1727458541042,3.69932,2703.2,2702.7,3.69999]
[1727458541644,3.69926,2703.3,2702.8,3.78310547]
[1727458541847,3.69926,2703.3,2702.8,3.78316547]
[1727458542010,3.69897,2703.5,2702.9,3.69972]
[1727458542207,3.69919,2703.3,2702.8,3.78317547]
[1727458542416,3.69919,2703.3,2703.0,0.08324542]
[1727458542636,3.69897,2703.5,2703.0,3.69958]
[1727458542809,3.69897,2703.5,2703.1,0.0832104]
[1727458543017,3.69901,2703.5,2703.1,0.0832104]
[1727458543512,4.47257,2703.6,2703.1,0.0832104]
[1727458543513,3.69918,2703.3,2703.1,0.0832104]
[1727458543833,3.69931,2703.2,2702.9,3.0]
[1727458544043,3.69931,2703.2,2702.8,3.0]
[1727458544216,3.69931,2703.2,2702.7,3.69999]
[1727458544846,3.69931,2703.2,2702.7,3.0]
[1727458545052,3.69931,2703.2,2702.8,3.69986]
[1727458546913,3.69919,2703.3,2702.8,7.39966]
[1727458547141,3.69919,2703.3,2702.8,3.6998]
[1727458547459,3.69914,2703.4,2702.8,3.6998]
[1727458547760,3.69934,2703.2,2702.8,3.6998]
[1727458547963,3.69934,2703.2,2702.7,3.692378]
[1727458548146,0.8276,2703.4,2702.4,3.70033]
[1727458548322,0.8276,2703.4,2702.1,0.45323112]
[1727458548323,3.7,2702.7,2702.5,0.08331926]
[1727458548525,3.70029,2702.5,2702.1,3.70081]
[1727458548827,0.8276,2702.9,2702.2,0.08342438]
[1727458549048,3.70055,2702.3,2702.2,0.08342438]
[1727458549242,4.52815,2702.3,2702.2,0.08342438]
[1727458549554,3.7007,2702.2,2701.8,7.35]
[1727458549754,3.7007,2702.2,2701.7,3.92498]
[1727458549968,3.7007,2702.2,2701.7,4.74003754]
[1727458550362,3.70085,2702.1,2701.5,3.70158]
[1727458550670,3.7012,2701.9,2701.4,0.2237]
[1727458550830,7.4024,2701.9,2701.3,3.70184]
[1727458551032,7.4024,2701.9,2701.3,5.22964654]
[1727458551256,3.7012,2701.9,2701.3,8.93148654]
[1727458551467,3.7012,2701.9,2701.3,5.22963654]
[1727458551629,3.70119,2701.9,2701.3,8.93147654]
[1727458551829,3.70123,2701.8,2701.4,1.62814765]
[1727458552126,3.70123,2701.8,2701.3,3.70182]
[1727458552336,3.70097,2702.0,2701.5,3.70157]
[1727458552658,7.40201,2702.0,2701.4,3.70165]
[1727458552847,7.40204,2702.0,2701.4,3.70165]
[1727458553049,3.7011,2701.9,2701.4,3.70165]
[1727458553757,3.70098,2702.0,2701.5,3.70158]
[1727458555377,0.740176,2702.0,2701.1,0.2237]
[1727458555678,0.740176,2702.0,2700.8,3.0]
[1727458555679,3.70208,2701.2,2700.8,0.2237]
[1727458555834,3.7007,2702.2,2700.5,0.2237]
[1727458555835,3.70233,2701.0,2700.5,0.2237]
[1727458556177,0.8171,2701.3,2700.5,0.2237]
[1727458556334,0.8171,2701.3,2700.3,3.70319]
[1727458556335,8.11863591,2701.3,2700.4,3.70315]
[1727458556541,3.70246,2701.0,2700.4,3.70315]
[1727458556860,3.70229,2701.1,2700.5,3.70292]
[1727458557236,3.70206,2701.2,2700.7,3.70272]
[1727458557436,4.51904,2701.3,2700.7,7.40533]
[1727458557677,4.51904,2701.3,2700.7,3.70266]
[1727458557886,4.51904,2701.3,2700.7,4.443217]
[1727458558599,4.51904,2701.3,2700.7,8.145887]
[1727458559073,8.22109,2701.3,2700.7,4.443217]
[1727458559272,3.70219,2701.1,2700.5,3.70293]
[1727458559963,3.70219,2701.1,2700.5,7.40587]
[1727458560165,1.3415,2701.4,2699.9,3.70375]
[1727458560366,4.49453,2700.5,2699.8,0.2237]
[1727458560540,3.70336,2700.3,2699.8,0.2237]
[1727458560740,3.70365,2700.1,2699.5,7.4086]
[1727458560967,4.152866,2700.3,2699.5,3.70429]
[1727458561172,3.70356,2700.1,2699.6,3.70417]
[1727458561898,3.70356,2700.1,2699.4,0.2237]
[1727458561899,4.4892026,2700.1,2699.4,3.92812]
[1727458562111,4.4892026,2700.1,2699.3,3.70457]
[1727458562112,3.70399,2699.8,2699.3,3.70457]
[1727458562397,0.7993,2699.9,2699.4,3.70452]
[1727458562694,0.7993,2699.9,2699.5,3.70435]
[1727458562859,3.7037,2700.0,2699.5,3.77165342]
[1727458563347,3.70366,2700.1,2699.6,3.70425]
[1727458563545,4.46745,2700.2,2699.7,3.7712132]
[1727458564172,3.70319,2700.4,2699.7,3.7712132]
[1727458564379,3.70319,2700.4,2699.9,3.70381]
[1727458564581,3.70319,2700.4,2700.0,0.06712789]
[1727458564887,7.40642,2700.4,2700.0,0.06712789]
[1727458565093,3.70319,2700.4,2700.0,0.06712789]
[1727458565303,4.46697,2700.6,2700.0,3.77073789]
[1727458565467,4.46697,2700.6,2700.0,0.06712789]
[1727458565468,3.70317,2700.4,2700.0,0.06712789]
[1727458566295,3.70338,2700.3,2700.0,0.06712789]
[1727458566661,3.70349,2700.2,2699.7,3.70403]
[1727458566859,3.70349,2700.2,2700.1,0.06708715]
[1727458567085,3.7033,2700.3,2699.7,3.70409]
[1727458567395,3.70331,2700.3,2699.8,3.70386]
[1727458567698,3.70331,2700.3,2699.9,0.06714043]
[1727458567895,3.70323,2700.4,2699.9,3.77095043]
[1727458568582,3.70335,2700.3,2699.9,0.06714043]
[1727458570401,3.70309,2700.5,2699.9,0.06714043]
[1727458570696,3.70315,2700.4,2699.9,3.77096043]
[1727458571258,3.70288,2700.6,2700.1,3.70345]
[1727458571456,7.40542,2700.8,2700.0,0.48548]
[1727458571759,4.4829,2701.0,2700.5,3.70295]
[1727458572070,4.4829,2701.0,2700.6,0.370295]
[1727458572278,4.4829,2701.0,2700.6,0.06683837]
[1727458572507,3.70255,2700.9,2700.6,0.06683837]
[1727458572677,0.7805,2701.0,2700.0,3.70366]
[1727458572678,3.70302,2700.5,2700.0,3.70366]
[1727458572876,3.70302,2700.5,2700.1,1.06311]
[1727458573221,3.70302,2700.5,2700.1,1.12975722]
[1727458573375,0.7805,2701.0,2700.1,1.12975722]
[1727458573578,3.70253,2700.9,2700.4,3.70308]
[1727458573813,0.7805,2701.0,2700.2,3.76996212]
[1727458573814,3.70282,2700.7,2700.2,3.76996212]
[1727458573978,7.40569,2700.7,2700.5,0.06650685]
[1727458574177,7.40569,2700.7,2700.2,3.70335]
[1727458574178,3.70282,2700.7,2700.2,3.70335]
[1727458574378,3.70282,2700.7,2700.6,0.06647176]
[1727458574810,3.70282,2700.7,2700.2,4.444046]
[1727458575014,0.7805,2701.0,2700.3,3.76978703]
[1727458575219,4.48292,2701.0,2700.5,3.70295]
[1727458575579,4.48292,2701.0,2700.6,0.06647176]
[1727458576279,4.4289285,2701.5,2700.6,0.06647176]
[1727458576280,0.8139,2701.3,2700.8,3.70258]
[1727458576487,4.18163705,2701.5,2700.8,3.70258]
[1727458576712,0.8139,2701.6,2700.6,0.46579494]
[1727458576713,0.8139,2701.6,2701.0,3.70226]
[1727458577017,4.4826,2701.9,2701.4,3.70172]
[1727458577338,4.4826,2701.9,2701.3,3.7019]
[1727458577544,3.70151,2701.6,2701.5,0.06603206]
[1727458577829,0.7815,2701.9,2701.1,0.2237]
[1727458577981,3.70062,2702.3,2701.5,3.76765206]
[1727458578181,3.7009,2702.1,2701.5,4.07837521]
[1727458578404,3.7009,2702.1,2701.6,3.76731223]
[1727458578626,3.70047,2702.4,2701.8,3.9248]
[1727458578929,4.389107,2702.4,2701.9,3.70108]
[1727458579131,0.688637,2702.4,2701.9,0.06542963]
[1727458579294,0.8092,2702.5,2701.9,0.06542963]
[1727458579485,3.70002,2702.7,2701.9,0.06542963]
[1727458579486,3.70096,2702.0,2701.9,0.06542963]
[1727458579687,3.70127,2701.8,2701.3,3.2237]
[1727458580001,3.70127,2701.8,2701.4,0.06264153]
[1727458582118,3.70127,2701.8,2701.2,7.40394]
[1727458582320,3.70127,2701.8,2701.5,0.06260646]
[1727458582497,3.70127,2701.8,2701.3,3.70191]
[1727458582697,4.071056,2702.0,2701.6,0.0625714]
[1727458582896,0.4071056,2701.9,2701.4,3.70178]
[1727458583124,0.4071056,2701.9,2701.7,0.06253635]
[1727458583433,0.4071056,2701.9,2701.0,3.2237]
[1727458583434,3.70075,2702.2,2701.8,0.06250129]
[1727458583585,7.40155,2702.2,2701.6,3.70143]
[1727458583786,0.8092,2702.3,2701.9,0.06246624]
[1727458584115,3.70043,2702.4,2701.8,3.9248]
[1727458584311,3.70043,2702.4,2702.0,0.06253247]
[1727458584526,4.49651,2702.6,2702.0,3.70089]
[1727458584700,8.19673,2702.6,2702.1,0.06241302]
[1727458585102,4.49651,2702.6,2702.1,0.06241302]
[1727458585302,3.70035,2702.5,2702.1,0.06241302]
[1727458586403,0.8146,2703.0,2702.4,3.7004]
[1727458586689,3.69986,2702.8,2702.3,3.92415]
[1727458587122,4.51429,2703.0,2702.4,0.06211101]
[1727458587390,3.6998,2702.9,2702.3,3.92415]
[1727458587606,3.69991,2702.8,2702.5,0.06207598]
[1727458587802,3.69991,2702.8,2702.3,3.92415]
[1727458588027,3.69991,2702.8,2702.6,0.06204095]
[1727458588238,4.5664839,2702.8,2702.3,3.92415]
[1727458588443,4.5664839,2702.8,2702.7,0.06200591]
[1727458588641,4.5664839,2702.8,2702.3,3.92415]
[1727458588936,3.70025,2702.6,2702.3,0.2237]
[1727458589344,3.69977,2702.9,2702.3,0.2237]
[1727458590437,7.39958,2702.9,2702.3,0.2237]
[1727458591041,3.69977,2702.9,2702.3,0.2237]
[1727458591407,7.3996,2702.9,2702.3,0.2237]
[1727458591597,3.70034,2702.5,2702.1,0.2237]
[1727458591806,3.70078,2702.2,2701.8,0.2237]
[1727458592200,0.8017,2702.4,2701.8,0.2237]
[1727458592201,7.40178,2702.1,2701.8,0.2237]
[1727458592436,3.70085,2702.1,2701.4,0.2237]
[1727458592608,7.4018,2702.1,2701.4,0.2237]
[1727458592810,3.70097,2702.0,2701.4,0.2237]
[1727458593007,3.70097,2702.0,2701.4,0.616259]
[1727458593505,3.70109,2701.9,2701.5,0.06213396]
[1727458594252,0.7941,2701.8,2701.5,0.06213396]
[1727458594552,3.70137,2701.7,2701.5,0.06213396]
[1727458594747,3.70137,2701.7,2701.1,0.2237]
[1727458594748,3.70151,2701.6,2701.1,0.2237]
[1727458594952,3.7018,2701.4,2700.8,0.2237]
[1727458595151,3.70199,2701.3,2700.8,0.2237]
[1727458596549,3.7018,2701.4,2700.8,0.2237]
[1727458596739,4.07198,2701.4,2700.8,0.2237]
[1727458598649,7.77384,2701.4,2700.8,0.2237]
[1727458599149,4.07198,2701.4,2700.8,0.2237]
[1727458601131,3.70234,2701.0,2700.5,0.2237]
[1727458601340,4.50101,2701.3,2700.5,0.2237]
[1727458601511,4.988095,2701.3,2700.5,0.2237]
[1727458601935,3.7023,2701.1,2700.5,0.2237]
[1727458602414,4.988095,2701.3,2700.5,3.9267]
[1727458602415,3.70207,2701.2,2700.5,3.9267]
[1727458602633,4.46551,2701.6,2700.7,3.70262]
[1727458603371,7.40375,2701.4,2700.7,3.70262]
[1727458603678,7.40375,2701.4,2700.7,4.6453432]
[1727458603878,3.70193,2701.3,2700.7,4.6453432]
[1727458605079,3.70193,2701.3,2700.7,0.9427232]
[1727458605080,7.40395,2701.3,2700.7,0.9427232]
[1727458605269,3.70224,2701.1,2700.5,5.724682]
[1727458605784,3.70206,2701.2,2700.5,5.724682]
[1727458605952,3.70206,2701.2,2700.6,0.5724682]
[1727458607340,7.40395,2701.3,2700.6,4.2753082]
[1727458607541,3.70207,2701.2,2700.6,0.5724682]
[1727458608682,3.70207,2701.2,2700.7,0.06338784]
[1727458609043,3.70193,2701.3,2700.7,0.06338784]
[1727458609247,3.70193,2701.3,2700.7,0.87945565]
[1727458609444,3.70173,2701.5,2700.8,7.5244221]
[1727458609672,3.70173,2701.5,2700.9,0.06331769]
[1727458609862,3.70182,2701.4,2700.9,0.06331769]
[1727458611886,3.70227,2701.1,2700.9,0.06331769]
[1727458613395,4.5071,2701.3,2700.9,0.06331769]
[1727458613850,8.20913,2701.3,2700.9,0.06331769]
[1727458614514,7.40403,2701.3,2700.9,0.06331769]
[1727458614786,3.702,2701.3,2700.9,0.06331769]
[1727458620301,3.70219,2701.1,2700.9,0.06331769]
[1727458620811,3.702,2701.3,2700.9,0.06331769]
[1727458623600,3.70208,2701.2,2700.9,0.06331769]
[1727458623808,3.7022,2701.1,2700.9,0.06331769]
[1727458624406,3.7022,2701.1,2700.6,0.2237]
[1727458624710,3.70207,2701.2,2700.6,1.71118921]
[1727458625004,3.70207,2701.2,2700.7,0.06373678]
[1727458625212,7.40424,2701.2,2700.7,0.06373678]
[1727458625508,7.40422,2701.2,2700.7,0.06373678]
[1727458626073,8.1290521,2701.1,2700.7,0.06373678]
[1727458626278,8.1290521,2701.1,2700.2,0.2237]
[1727458626279,3.70364,2700.1,2699.5,0.2237]
[1727458626465,3.70365,2700.1,2699.3,0.2237]
[1727458626670,3.70428,2699.6,2699.3,0.2237]
[1727458627099,3.70408,2699.8,2699.3,0.2237]
[1727458628708,7.40816,2699.8,2699.3,0.2237]
[1727458629007,3.70413,2699.7,2699.3,0.2237]
[1727458631013,3.70428,2699.6,2699.0,6.70501]
[1727458631211,3.70379,2700.0,2699.0,12.39898021]
[1727458631506,3.70416,2699.7,2699.0,8.69397021]
[1727458631706,3.70416,2699.7,2699.1,1.22921623]
[1727458631910,3.70441,2699.5,2699.0,3.2237]
[1727458632211,3.70421,2699.7,2699.0,0.2237]
[1727458632212,4.3541921,2699.7,2699.0,0.2237]
[1727458632517,0.370421,2699.6,2698.6,0.2237]
[1727458632723,0.370421,2699.6,2697.7,19.56]
[1727458632724,3.70542,2698.8,2698.1,3.70617]
[1727458632924,3.70542,2698.8,2698.2,0.2237]
[1727458632925,3.70567,2698.6,2698.2,0.2237]
[1727458633127,3.70567,2698.6,2697.9,0.2237]
[1727458633128,0.741109,2698.6,2697.9,0.2237]
[1727458633304,3.70627,2698.2,2697.7,7.35]
[1727458633504,3.70638,2698.1,2697.6,0.13703]
[1727458634024,3.70627,2698.2,2697.7,0.04981302]
[1727458634231,3.5981921,2698.5,2697.7,0.04981302]
[1727458634232,3.70611,2698.3,2697.7,0.04981302]
[1727458634387,0.7631,2698.6,2697.8,0.2237]
[1727458634705,3.70646,2698.0,2697.7,0.04981302]
[1727458635430,7.41299,2698.0,2697.7,0.04981302]
[1727458635633,8.22912,2698.0,2697.7,0.04981302]
[1727458635836,5.345472,2698.0,2697.7,0.04981302]
[1727458636016,0.8161,2698.0,2697.7,0.04981302]
[1727458636373,3.70625,2698.2,2697.7,0.04981302]
[1727458637033,7.41254,2698.2,2697.7,0.04981302]
[1727458637231,3.70654,2698.0,2697.7,0.04981302]
[1727458637421,3.70672,2697.8,2697.7,0.04981302]
[1727458637799,0.370654,2697.9,2697.7,0.04981302]
[1727458637996,3.70625,2698.2,2697.7,0.04981302]
[1727458638202,3.70632,2698.1,2697.7,0.04981302]
[1727458638610,3.70625,2698.2,2697.7,0.04981302]
[1727458638820,3.70641,2698.1,2697.7,0.04981302]
[1727458639522,3.70644,2698.0,2697.7,0.04981302]
[1727458640531,7.41297,2698.0,2697.7,0.04981302]
[1727458640838,3.70644,2698.0,2697.7,0.04981302]
[1727458641763,0.453395,2698.1,2697.7,0.04981302]
[1727458641764,4.159745,2698.1,2697.7,0.04981302]
[1727458642065,3.70659,2697.9,2697.7,0.04981302]
[1727458643904,3.70672,2697.8,2697.7,0.04981302]
[1727458644014,3.70672,2697.8,2697.6,0.13703]
[1727458644015,3.70686,2697.7,2697.6,0.13703]
[1727458644219,5.446757,2697.7,2697.6,0.13703]
[1727458645220,3.70823,2696.7,2696.6,0.0008037]
[1727458648441,4.25823,2696.7,2696.6,0.0008037]
[1727458648754,11.38096173,2696.7,2696.6,0.0008037]
[1727458648968,12.9693089,2696.7,2696.6,0.0008037]
[1727458649163,13.7770089,2696.7,2696.6,0.0008037]
[1727458650342,10.7770089,2696.7,2696.6,0.0008037]
[1727458651153,16.1181089,2696.7,2696.6,0.0008037]
[1727458651897,16.1181089,2696.7,2696.3,0.005]
[1727458651898,7.48424,2696.4,2696.3,0.005]
[1727458652207,11.60697173,2696.4,2696.3,0.005]
[1727458655863,7.48424,2696.4,2696.3,0.005]
[1727458656267,6.93424,2696.4,2696.3,0.005]
[1727458656469,3.70864,2696.4,2696.3,0.005]
[1727458656680,4.64861819,2696.4,2696.3,0.005]
[1727458657301,3.70852,2696.5,2696.3,0.005]
[1727458657486,3.70864,2696.4,2696.3,0.005]
[1727458658093,0.824,2696.8,2696.3,0.005]
[1727458658094,3.70845,2696.6,2696.3,0.04650713]
[1727458658483,4.53218,2696.8,2696.3,0.04650713]
[1727458658484,7.41638,2696.8,2696.3,0.04650713]
[1727458658672,7.41637,2696.8,2696.3,0.04650713]
[1727458659188,3.70834,2696.7,2696.3,0.04650713]
[1727458659517,3.70817,2696.8,2696.3,0.04650713]
[1727458659518,3.70792,2697.0,2696.4,0.2245]
[1727458659723,3.70796,2696.9,2696.5,0.04145371]
[1727458659887,4.53133,2697.4,2696.5,0.04145371]
[1727458659888,3.7078,2697.1,2696.5,0.04145371]
[1727458660089,3.70803,2696.9,2696.5,0.04145371]
[1727458660627,0.824,2697.4,2696.5,0.04145371]
[1727458660785,3.70775,2697.1,2696.5,3.74996371]
[1727458660988,3.70784,2697.0,2696.5,3.74996371]
[1727458661488,3.7081,2696.8,2696.5,0.04145371]
[1727458661796,0.37081,2696.8,2696.5,0.04145371]
[1727458662002,3.70796,2696.9,2696.5,0.04145371]
[1727458662202,3.70737,2697.4,2696.5,0.04145371]
[1727458662405,3.55,2697.5,2696.5,0.04145371]
[1727458662640,3.70803,2696.9,2696.5,0.04145371]
[1727458663298,3.7082,2696.8,2696.5,0.04145371]
[1727458663738,3.70823,2696.7,2696.5,0.04145371]
[1727458663895,3.70837,2696.6,2696.5,0.04145371]
[1727458664090,3.70837,2696.6,2696.3,0.005]
[1727458664317,0.7995,2697.0,2696.4,0.03950012]
[1727458664491,3.70798,2696.9,2696.3,3.71369]
[1727458664694,3.70798,2696.9,2696.4,0.03952834]
[1727458665011,3.70816,2696.8,2696.4,0.03952834]
[1727458666404,0.741587,2696.9,2696.4,0.03952834]
[1727458666635,3.70851,2696.5,2696.4,0.03952834]
[1727458667262,3.70846,2696.6,2696.4,0.03952834]
[1727458667472,3.70851,2696.5,2696.4,0.03952834]
[1727458667771,3.70851,2696.5,2696.3,0.005]
[1727458667772,4.46134,2696.4,2696.3,0.005]
[1727458667933,5.01134,2696.4,2696.3,0.005]
[1727458668428,4.25878,2696.3,2696.2,0.005]
[1727458668630,6.29561287,2696.3,2696.2,0.005]
[1727458668947,3.70947,2695.8,2695.1,0.2245]
[1727458669155,3.70947,2695.8,2695.1,3.93493]
[1727458669333,3.70947,2695.8,2695.1,0.2245]
[1727458670335,4.25947,2695.8,2695.1,0.2245]
[1727458670542,3.71071,2694.9,2694.8,0.13203]
[1727458671327,3.71071,2694.9,2693.1,5.67041184]
[1727458671328,3.55,2694.8,2693.5,3.71258]
[1727458671589,3.71161,2694.3,2693.6,3.94634221]
[1727458671772,3.71143,2694.4,2693.8,3.71221]
[1727458671975,3.71138,2694.5,2693.8,3.71221]
[1727458672265,3.71138,2694.5,2693.7,0.39463422]
[1727458672266,3.71135,2694.5,2694.0,0.2245]
[1727458672559,3.7116,2694.3,2694.1,0.04613041]
[1727458672764,8.303709,2694.7,2694.1,0.04613041]
[1727458672967,3.71079,2694.9,2694.2,3.71159]
[1727458673171,3.71079,2694.9,2694.2,4.15946006]
[1727458673468,0.8124,2695.2,2694.3,0.47298371]
[1727458673674,3.71041,2695.2,2694.6,3.9356]
[1727458673852,4.52204,2695.7,2694.6,3.9356]
[1727458673853,3.71017,2695.3,2694.7,3.71088]
[1727458674169,3.71017,2695.3,2694.7,3.76138624]
[1727458674372,4.12273173,2695.8,2694.7,0.05042624]
[1727458674668,3.70916,2696.1,2695.1,0.2245]
[1727458674871,3.70927,2696.0,2695.2,3.71029]
[1727458675166,3.70934,2695.9,2695.3,3.71009]
[1727458675335,3.70907,2696.1,2695.4,3.71]
[1727458675537,0.8124,2696.2,2695.4,3.71]
[1727458675538,3.70933,2696.0,2695.5,0.05000352]
[1727458676267,3.70954,2695.8,2695.5,0.05000352]
[1727458676632,3.70954,2695.8,2695.2,3.71022]
[1727458676834,3.70954,2695.8,2695.6,0.04995069]
[1727458677067,3.70881,2696.3,2695.1,0.2245]
[1727458677068,4.12273173,2696.2,2695.1,0.2245]
[1727458677269,3.71011,2695.4,2695.1,0.2245]
[1727458678491,3.71011,2695.4,2694.8,3.71076]
[1727458678492,3.71031,2695.2,2694.8,0.2245]
[1727458678682,7.42026,2695.4,2694.8,0.2245]
[1727458679005,3.70984,2695.6,2695.0,3.71053]
[1727458679161,3.70956,2695.8,2695.1,7.42086]
[1727458679364,3.70973,2695.7,2695.1,3.71043]
[1727458679802,3.70956,2695.8,2695.1,3.71043]
[1727458679803,3.70977,2695.6,2695.1,3.71043]
[1727458680007,3.70977,2695.6,2695.1,4.452539]
[1727458680176,3.70977,2695.6,2694.9,3.71066]
[1727458680504,3.71003,2695.4,2694.9,3.0]
[1727458680907,3.71003,2695.4,2694.8,0.2245]
[1727458681205,3.71031,2695.2,2694.8,0.2245]
[1727458681412,0.78315417,2696.1,2695.6,3.93423]
[1727458681413,3.70918,2696.1,2695.6,3.93423]
[1727458681706,3.70898,2696.2,2695.6,3.93423]
[1727458681887,0.825105,2696.1,2695.6,3.93423]
[1727458682475,4.534175,2696.1,2695.6,3.93423]
[1727458682890,4.534175,2696.1,2695.6,0.2245]
[1727458683394,3.7092,2696.0,2695.7,0.04990637]
[1727458683594,4.534175,2696.1,2695.7,0.04990637]
[1727458683805,8.243325,2696.1,2695.7,0.04990637]
[1727458683963,3.70943,2695.9,2695.7,0.04990637]
[1727458684164,3.70947,2695.8,2695.7,0.04990637]
[1727458684391,3.70967,2695.7,2695.2,0.2245]
[1727458684767,0.55,2696.1,2695.0,7.35]
[1727458684973,0.55,2696.1,2694.9,3.93512]
[1727458684974,3.71036,2695.2,2694.9,0.2245]
[1727458685409,7.42047,2695.3,2694.9,0.2245]
[1727458685591,3.71019,2695.3,2694.9,0.2245]
[1727458686120,3.70971,2695.7,2695.0,3.71051]
[1727458686323,3.70971,2695.7,2695.2,3.71029]
[1727458686509,3.7099,2695.5,2695.0,3.71051]
[1727458686881,1.41648717,2696.1,2695.0,3.71051]
[1727458686882,3.70975,2695.6,2695.1,3.71041]
[1727458687121,3.70968,2695.7,2695.1,3.71041]
[1727458687496,3.70948,2695.8,2695.1,3.71041]
[1727458687497,3.70975,2695.6,2695.1,3.71041]
[1727458687814,3.70975,2695.6,2694.8,3.93525]
[1727458687815,3.71023,2695.3,2694.8,3.93525]
[1727458688221,3.71031,2695.2,2694.8,0.2245]
[1727458688426,3.71031,2695.2,2694.5,0.2245]
[1727458688427,0.371031,2695.2,2694.5,0.2245]
[1727458688634,3.71024,2695.3,2694.5,0.2245]
[1727458688925,3.71024,2695.3,2694.8,3.71084]
[1727458689086,7.42047,2695.3,2694.8,3.71084]
[1727458689423,3.7104,2695.2,2694.6,3.71099]
[1727458689592,3.71057,2695.0,2694.5,0.2245]
[1727458689795,3.71058,2695.0,2694.5,0.2245]
[1727458690017,4.08141,2695.2,2694.5,0.2245]
[1727458690193,3.71037,2695.2,2694.7,3.71095]
[1727458690395,3.71013,2695.4,2694.9,3.71069]
[1727458690718,3.70983,2695.6,2695.0,3.71056]
[1727458690892,4.161903,2695.5,2695.0,3.71056]
[1727458691091,4.161903,2695.5,2694.7,3.71088]
[1727458691092,3.71009,2695.4,2694.7,3.71088]
[1727458691400,3.7103,2695.2,2694.8,3.71081]
[1727458691594,0.451923,2695.5,2694.5,0.2245]
[1727458691595,3.70982,2695.6,2695.2,0.2245]
[1727458691795,3.70957,2695.8,2695.3,3.71014]
[1727458692007,3.70937,2695.9,2695.3,3.71005]
[1727458692323,3.70976,2695.6,2695.2,0.2245]
[1727458692681,3.70929,2696.0,2695.2,0.2245]
[1727458692883,0.370929,2696.0,2695.5,3.70982]
[1727458693131,0.8094,2696.3,2695.7,3.7096]
[1727458693132,3.70892,2696.2,2695.7,3.7096]
[1727458693631,3.70947,2695.9,2695.6,0.2245]
[1727458693925,3.70955,2695.8,2695.6,0.2245]
[1727458694085,3.70961,2695.7,2695.6,0.2245]
[1727458694407,3.71003,2695.4,2694.9,3.71065]
[1727458694613,3.71003,2695.4,2694.9,4.677283]
[1727458694790,3.71003,2695.4,2694.9,3.93513]
[1727458695684,3.70982,2695.6,2695.1,3.71043]
[1727458695882,7.41965,2695.6,2695.1,3.71043]
[1727458696194,3.70988,2695.5,2695.1,3.71043]
[1727458696397,3.70982,2695.6,2694.9,3.9351]
[1727458696398,3.71003,2695.4,2695.0,3.71056]
[1727458696921,3.70993,2695.5,2695.0,7.42102]
[1727458697226,3.7096,2695.8,2695.2,3.71021]
[1727458697386,7.41916,2695.8,2695.3,3.71015]
[1727458697592,3.70956,2695.8,2695.3,3.71015]
[1727458697922,7.41916,2695.8,2695.3,3.71015]
[1727458698089,3.70961,2695.7,2695.3,3.71015]
[1727458698426,3.70987,2695.6,2695.4,0.05011561]
[1727458698628,3.70988,2695.5,2695.4,0.05011561]
[1727458698792,3.7101,2695.4,2694.9,3.93516]
[1727458698997,3.70988,2695.5,2695.4,0.05011561]
[1727458699325,4.51916,2695.6,2694.9,0.2245]
[1727458699326,3.71041,2695.2,2694.9,0.2245]
[1727458699528,3.71041,2695.2,2695.0,0.05032696]
[1727458699830,3.71015,2695.4,2695.0,0.05032696]
[1727458700395,3.71004,2695.4,2695.0,0.05032696]
[1727458700602,3.71016,2695.3,2695.0,0.05032696]
[1727458701228,4.161906,2695.5,2695.0,0.05032696]
[1727458701402,4.161906,2695.5,2695.0,3.76082696]
[1727458701596,3.70999,2695.5,2695.0,3.76082696]
[1727458702243,3.70999,2695.5,2695.0,0.05032696]
[1727458702545,3.71022,2695.3,2695.0,0.05032696]
[1727458702705,3.71029,2695.2,2695.0,0.05032696]
[1727458702900,4.081459,2695.1,2695.0,0.05032696]
[1727458703109,3.71043,2695.1,2695.0,0.05032696]
[1727458703416,3.71029,2695.2,2695.0,0.05032696]
[1727458704183,4.52796,2695.9,2695.0,0.05032696]
[1727458704441,3.70995,2695.5,2695.0,3.76087696]
[1727458705123,3.7099,2695.5,2695.0,0.05032696]
[1727458705328,3.71043,2695.1,2694.7,0.2245]
[1727458705530,4.081693,2695.0,2694.5,3.71124]
[1727458705737,3.71085,2694.8,2694.6,0.08106095]
[1727458706257,3.71031,2695.2,2694.4,0.2245]
[1727458706399,3.71094,2694.8,2694.7,0.08097285]
[1727458706603,3.71118,2694.6,2694.4,0.2245]
[1727458706801,0.7826,2694.7,2693.9,3.71202]
[1727458707028,3.71154,2694.3,2693.9,3.71202]
[1727458707412,3.71114,2694.6,2694.1,3.71174]
[1727458707612,3.71105,2694.7,2694.2,3.71161]
[1727458708034,3.71105,2694.7,2694.0,3.93638]
[1727458708035,3.71133,2694.5,2694.0,3.93638]
[1727458708457,3.7116,2694.3,2694.0,0.2245]
[1727458708667,3.7116,2694.3,2693.8,3.71221]
[1727458709359,3.7116,2694.3,2693.9,3.71206]
[1727458710157,3.71175,2694.2,2693.7,7.64905]